Cogmind - Beta 12 @@@ ROGUE MODE // 2023.07.09 @ 18:16:58 // Winter2019/RPGLIKE Player: PionFour Result: Destroyed by DAS Turret with DAS Cannon Performance ------------- Evolutions (0) 0 Regions Visited (3) 600 Robots Destroyed (40) 200 Value Destroyed (971) 971 Prototype IDs (20) 400 Alien Tech Used (0) 0 Bonus (27) 27 TOTAL SCORE: 2198 Bonus ------- High Alert Combat Kills 21 Aligned with FarCom 300 Friendly Fire -294 Cogmind --------- Core Integrity 0/750 Matter 156/350 Energy 310/310 System Corruption 0% Temperature Cool (0) Movement Walking (120) Location -10/Exiles Parts ------- > --- POWER (1) -------- Reinforced Fission Core > --- PROPULSION (3) --- Advanced Myomer Leg Advanced Myomer Leg Flight Unit > --- UTILITY (5) ------ Sensor Array Signal Interpreter Improved Terrain Scanner Modified TNC > --- WEAPON (1) ------- 8R-AWN's Boregun > --- INVENTORY (3) ---- Trap Reconfigurator Datajack Longsword +1 Peak State ------------ > --- POWER ------------ Reinforced Fission Core > --- PROPULSION ------- Advanced Myomer Leg Advanced Myomer Leg Flight Unit > --- UTILITY ---------- Sensor Array Signal Interpreter Improved Terrain Scanner Modified TNC > --- WEAPON ----------- 8R-AWN's Boregun > --- INVENTORY -------- 8R-AWN's Boregun Rocket Launcher Longsword +1 [Rating: 46] Favorites ----------- Power Ion Engine Engine Ion Engine Power Core Reinforced Fission Core Propulsion Flight Unit Leg Advanced Myomer Leg Wheel Wheel Hover Unit Hover Unit Flight Unit Flight Unit Utility Improved Terrain Scanner Device Improved Terrain Scanner Processor Signal Interpreter Protection Light Armor Plating Weapon EM Pulse Gun Energy Gun EM Pulse Gun Ballistic Gun 8R-AWN's Boregun Launcher Grenade Launcher Slashing Weapon Longsword +1 Special Melee Weapon Datajack Build | -11 -10 -10 -10 ------- Run | Jun Mat Min Exi Slots Evolved 6 | 1 3 2 . Power . | . . . . Propulsion 2 | . 2 . . Utility 4 | 1 1 2 . Weapon . | . . . . Parts Attached 43 | 3 19 7 14 Power 3 | . 1 . 2 Engine 1 | . 1 . . Core 2 | . . . 2 Reactor . | . . . . Propulsion 8 | 1 5 . 2 Treads . | . . . . Leg 2 | . . . 2 Wheel 2 | 1 1 . . Hover 1 | . 1 . . Flight 3 | . 3 . . Utility 12 | 2 5 2 3 Device 5 | 2 1 . 2 Storage . | . . . . Processor 5 | . 3 1 1 Hackware . | . . . . Protection 2 | . 1 1 . Artifact . | . . . . Weapon 20 | . 8 5 7 Energy Gun 7 | . 4 3 . Energy Cannon . | . . . . Ballistic Gun 2 | . . . 2 Ballistic Cannon . | . . . . Launcher 7 | . 4 2 1 Special Weapon . | . . . . Impact Weapon . | . . . . Slashing Weapon 3 | . . . 3 Piercing Weapon . | . . . . Special Melee Weapon 1 | . . . 1 Unidentified Prototypes 3 | . . . 3 Parts Lost 2 | . . . 2 Power . | . . . . Propulsion 1 | . . . 1 Utility 1 | . . . 1 Weapon . | . . . . Highest Loss Streak 2 | . . . 2 To Critical Strikes 1 | . . . 1 Average Slot Usage (%) 97 | . 99 97 94 Engine 12 | . 17 10 5 Core 1 | . . . 3 Leg 2 | . . . 7 Wheel 2 | . 4 . . Hover 1 | . 2 . . Flight 20 | . 17 31 21 Device 21 | . 22 21 20 Processor 18 | . 17 20 20 Protection 2 | . . 3 5 Energy Gun 8 | . 12 7 . Ballistic Gun 1 | . . . 3 Launcher 2 | . 4 3 . Naked Turns . | . . . . Heaviest Build 29 | 6 11 12 29 Greatest Support 65 | 10 17 17 65 Greatest Overweight (x) 1 | . 1 . . Average Overweight (x) . | . . . . Largest Inventory Capacity 3 | 2 3 3 3 Average Capacity 2 | 1 2 3 3 Most Carried 3 | 2 3 3 3 Average Carried 2 | 1 1 2 2 Final Capacity 3 | 2 3 3 3 Final Carried 3 | 2 2 3 3 Class Distribution -------------------- 40% | Hacker-Scout 26% | Hacker-Mutant 25% | Scavenger-Scout 7% | Mutant Dominant Class ---------------- Hacker-Scout | -10/Materials Scavenger-Scout | -10/Mines Hacker-Mutant | -10/Exiles Resources | -11 -10 -10 -10 ----------- Run | Jun Mat Min Exi Matter Collected 1454 | 214 926 160 154 Remotely . | . . . . Salvage Created 986 | 151 513 137 185 Parts 84 | 7 51 19 7 Haulers Intercepted 2 | . 2 . . Recyclers Shooed . | . . . . Parts Field Recycled . | . . . . Retrieved Matter . | . . . . Parts Self-Destructed . | . . . . Prevented . | . . . . Kills | -11 -10 -10 -10 ------- Run | Jun Mat Min Exi Combat Hostiles Destroyed 35 | . 12 17 6 Melee 3 | . . . 3 Guns 6 | . 4 1 1 AOE 26 | . 8 16 2 Classes Destroyed 10 | 2 6 2 . Worker 6 | . 5 1 . Builder 6 | . 6 . . Tunneler 3 | 3 . . . Hauler 2 | . 2 . . Recycler 1 | 1 . . . Watcher 2 | . 2 . . Swarmer 9 | . 3 6 . Grunt 9 | . 9 . . Sentry 1 | . . 1 . Assembled 15 | . . 10 5 Best Kill Streak 13 | 3 5 13 4 Combat Bots Only 13 | . 3 13 4 Max Kills in Single Turn 3 | 1 3 3 1 Gunslinging . | . . . . Exploded 3 | . 3 3 1 Melee 1 | . . . 1 Uniques/NPCs Destroyed 1 | . . . 1 8R-AWN (-10/Exiles) Combat | -11 -10 -10 -10 -------- Run | Jun Mat Min Exi Damage Taken 1321 | . 277 197 847 Core 1034 | . 230 152 652 Absorbed by Shields . | . . . . Redirected to Core 648 | . 148 152 348 Regen/Repaired (Parts) 45 | . 45 . . Core Remaining (%) 100 | 100 . . . Volleys Fired 220 | 24 148 15 33 Largest 1 | 1 1 1 1 Hottest 40 | 40 40 40 33 Shots Fired 220 | 24 148 15 33 Gun 141 | 24 81 5 31 Cannon . | . . . . Launcher 79 | . 67 10 2 Special . | . . . . Kinetic 31 | . . . 31 Thermal 53 | 24 29 . . Explosive 79 | . 67 10 2 Electromagnetic 57 | . 52 5 . Robot Hit Streak 9 | 5 9 8 9 Robot Miss Streak 4 | 2 2 3 4 Penetration Max . | . . . . Secondary Targets . | . . . . Shots Hit Robots 103 | 15 49 8 31 Core Hits 81 | 5 36 26 14 Critical Kills 2 | . . . 2 Critical Parts Destroyed . | . . . . Critical Strikes 5 | . 1 . 4 Destroy 2 | . . . 2 Corrupt 1 | . 1 . . Sever 2 | . . . 2 Melee Attacks 30 | . . . 30 Impact . | . . . . Slashing 26 | . . . 26 Piercing . | . . . . Sneak Attacks 5 | . . . 5 Combat Hostiles . | . . . . Follow-up Attacks . | . . . . Damage Inflicted 3875 | 163 1185 1132 1395 Guns 862 | 163 587 54 58 Cannons . | . . . . Explosions 1808 | . 598 1078 132 Melee 1205 | . . . 1205 Ramming . | . . . . Kinetic 58 | . . . 58 Thermal 358 | 163 195 . . Explosive 1788 | . 578 1078 132 Electromagnetic 466 | . 412 54 . Impact . | . . . . Slashing 1205 | . . . 1205 Piercing . | . . . . Highest Corruption . | . . . . Average Corruption . | . . . . Corruption Purged . | . . . . Corruption Blocked . | . . . . Overload Shots . | . . . . Overflow Damage 71 | . . 38 33 Projectiles . | . . . . Explosions 38 | . . 38 . Melee 33 | . . . 33 Knockbacks . | . . . . Impact . | . . . . Kinetic . | . . . . Secondary . | . . . . Self-Inflicted Damage 77 | . 53 . 24 Shots 5 | . 4 . 1 Rammed . | . . . . Targets Rammed . | . . . . Kicked . | . . . . Crushed . | . . . . Highest Temperature 76 | 20 76 48 54 Average Temperature 18 | 20 20 18 14 Received Heat Transfer 252 | . 114 18 120 Siege Activations . | . . . . Robots Corrupted . | . . . . Combat Hostiles . | . . . . Parts Fried 1 | . 1 . . Impact Corruptions . | . . . . Robots Melted . | . . . . Combat Hostiles . | . . . . Parts Melted . | . . . . Heat Transferred 825 | 375 450 . . Parts Sabotaged . | . . . . Parts Stolen . | . . . . Parts Stripped . | . . . . Power Chain Reactions . | . . . . Missiles Intercepted . | . . . . Alert | -11 -10 -10 -10 ------- Run | Jun Mat Min Exi Peak Influence 922 | 20 922 640 . Initial 359 | . 13 359 . Average 296 | 6 263 573 . Maximum Alert Level 3 | . 3 2 . Low Security (%) 51 | 100 57 . . Level 1 16 | . 21 . . Level 2 25 | . 10 99 . Level 3 7 | . 10 . . Level 4 . | . . . . Level 5 . | . . . . High Security . | . . . . Max Security . | . . . . Squads Dispatched 3 | . 3 . . Investigation 3 | . 3 . . Extermination . | . . . . Reinforcement . | . . . . Assault . | . . . . Garrison . | . . . . Intercept . | . . . . Searches Triggered . | . . . . Construction Impeded . | . . . . Haulers Reinforced . | . . . . Active Scanning Responses . | . . . . Cargo Convoy Interrupts . | . . . . Stealth | -11 -10 -10 -10 --------- Run | Jun Mat Min Exi Distress Signals . | . . . . Communications Jammed . | . . . . Distress Signals . | . . . . Times Spotted 38 | . 17 15 6 Peak Tracking Total 9 | . 4 9 9 Tactical Retreats 2 | . 1 . 1 Traps | -11 -10 -10 -10 ------- Run | Jun Mat Min Exi Traps Triggered 2 | . 2 . . Indirectly . | . . . . Trap Hack Attempts . | . . . . Triggered . | . . . . Disarmed . | . . . . Reprogrammed . | . . . . Reused . | . . . . Traps Extracted . | . . . . Installed . | . . . . Triggered . | . . . . Machines | -11 -10 -10 -10 ---------- Run | Jun Mat Min Exi Machines Disabled 54 | . 41 3 10 Max in Single Turn 3 | . 3 2 2 Machines Repaired . | . . . . Machines Sabotaged . | . . . . Overloaded Fab Kills . | . . . . Hacking | -11 -10 -10 -10 --------- Run | Jun Mat Min Exi Machines Accessed 11 | . 9 . 2 Terminals 6 | . 6 . . Fabricators . | . . . . Repair Stations 1 | . 1 . . Recycling Units 2 | . 2 . . Scanalyzers . | . . . . Garrison Access . | . . . . Total Hacks 53 | . 42 . 11 Successful 35 | . 24 . 11 Failed 18 | . 18 . . Catastrophic . | . . . . Database Lockouts . | . . . . Manual 8 | . 7 . 1 Terminals 30 | . 30 . . Fabricators . | . . . . Repair Stations 2 | . 2 . . Recycling Units 10 | . 10 . . Scanalyzers . | . . . . Garrison Access . | . . . . Terminal Hacks 27 | . 16 . 11 Record 17 | . 6 . 11 Prototype ID Bank 2 | . 2 . . Branch Access Points 1 | . 1 . . Terminal Index 1 | . 1 . . Alert Level 1 | . 1 . . Locate Traps 1 | . 1 . . Dispatch Records 1 | . 1 . . Maintenance Status 1 | . 1 . . Security Status 1 | . 1 . . Transport Status 1 | . 1 . . Fabricator Hacks . | . . . . Repair Station Hacks 2 | . 2 . . Scan Component 1 | . 1 . . Repair 1 | . 1 . . Recycling Unit Hacks 6 | . 6 . . Report Inventory 4 | . 4 . . Retrieve Components 2 | . 2 . . Scanalyzer . | . . . . Garrison Access Hacks . | . . . . Unauthorized Hacks . | . . . . Terminals . | . . . . Fabricators . | . . . . Repair Stations . | . . . . Recycling Units . | . . . . Scanalyzers . | . . . . Garrison Access . | . . . . Data Cores Recovered . | . . . . Used . | . . . . Hacking Detections 7 | . 7 . . Full Trace Events 2 | . 2 . . Feedback Events . | . . . . Feedback Blocked . | . . . . Robot Schematics Acquired . | . . . . Robots Built . | . . . . Authchips . | . . . . Time . | . . . . Total Robot Build Rating . | . . . . Part Schematics Acquired . | . . . . Parts Built . | . . . . Authchips . | . . . . Time . | . . . . Total Part Build Rating . | . . . . Parts Repaired 1 | . 1 . . Time 26 | . 26 . . Parts Recycled . | . . . . Recycled Matter . | . . . . Retrieved Matter . | . . . . Retrieved Components 11 | . 11 . . Parts Scanalyzed . | . . . . Part Schematics Acquired . | . . . . Parts Damaged . | . . . . Bothacking | -11 -10 -10 -10 ------------ Run | Jun Mat Min Exi Used RIF Installer . | . . . . Robots Hacked 4 | . . . 4 Non-combat 3 | . . . 3 Combat 1 | . . . 1 Robot Hacks Applied 4 | . . . 4 parse_system 4 | . . . 4 Relay Couplers Released . | . . . . Fabnet Peak Effective % . | . . . . Robots Rewired . | . . . . Allies Hacked . | . . . . Hacks Repelled . | . . . . Allies | -11 -10 -10 -10 -------- Run | Jun Mat Min Exi Total Allies . | . . . . Largest Group . | . . . . Highest-Rated Group . | . . . . Highest-Rated Ally . | . . . . Total Orders . | . . . . Ally Attacks . | . . . . Total Damage . | . . . . Kills . | . . . . Allies Corrupted . | . . . . Allies Melted . | . . . . Intel | -11 -10 -10 -10 ------- Run | Jun Mat Min Exi Robot Analysis Total . | . . . . Derelict Logs Recovered . | . . . . Drone Launches . | . . . . Drone Recoveries . | . . . . Exploration | -11 -10 -10 -10 ------------- Run | Jun Mat Min Exi Turns Passed 2581 | 144 1353 315 769 Spaces Moved 4130 | 62 2013 771 1284 Core . | . . . . Treads . | . . . . Legs 179 | 1 . . 178 Wheels 262 | 61 201 . . Hover 184 | . 184 . . Flight 3505 | . 1628 771 1106 Fastest Speed 34 | 80 34 34 34 Average Speed 43 | 80 44 34 45 Slowest Speed 120 | 120 120 34 120 Overloaded Moves . | . . . . Propulsion Burnouts . | . . . . Robots Hopped 9 | . 5 4 . Cave-ins Triggered . | . . . . Exploration Rate (%) 73 | 4 98 98 95 Regions Visited 3 Branch Regions 2 Pre-discovered Areas 2 | . . 1 1 Known Exits Taken 2 | . 1 1 . Unknown Exits Taken 1 | 1 . . . Scrap Searched 1 | . . 1 . Spaces Dug 28 | . 28 . . Terrain Destroyed 593 | . 379 72 142 Melee . | . . . . Projectile 3 | . . . 3 AOE 589 | . 379 72 138 Terrain Rammed . | . . . . Walls Destroyed . | . . . . Machines Disabled . | . . . . Actions | -11 -10 -10 -10 --------- Run | Jun Mat Min Exi Total 4659 | 130 2323 802 1404 Wait 178 | 39 118 9 12 Move 4110 | 61 2002 763 1284 Hop 8 | . 5 3 . Pick Up 22 | 2 5 4 11 Fast Attach 17 | 3 9 . 5 Attach 4 | . 1 2 1 Detach . | . . . . Swap 22 | . 9 5 8 Drop 30 | 1 12 1 16 Fire 220 | 24 148 15 33 Melee 30 | . . . 30 Ram . | . . . . Kick . | . . . . Crush . | . . . . Escape Stasis . | . . . . Rewire . | . . . . Trap . | . . . . Miscellaneous 18 | . 14 . 4 Route ------- -11/Junkyard -10/Materials (discovered 5 exits: *Mat x3 / *Min x2) -10/Mines (discovered 3 exits: *Mat x2 / *Exi) -10/Exiles (discovered 2 exits: *Min x2) History --------- Turn | Location | Event 1 | -11/Junkyard | Discovered new exit (range 1) 9 | -11/Junkyard | Upgraded with Utility slot (x1) 145 | -11/Junkyard | Entered Materials 145 | -10/Materials | Discovered new exit (range 8) 237 | -10/Materials | Discovered new exit (range 14) 477 | -10/Materials | Discovered new exit (range 13) 503 | -10/Materials | Build established: Hacker-Mutant 504 | -10/Materials | Identified exit to Mines 696 | -10/Materials | Discovered new exit (range 12) 741 | -10/Materials | Discovered new exit (range 10) 812 | -10/Materials | Repaired Grenade Launcher 836 | -10/Materials | Build established: Hacker-Scout 847 | -10/Materials | Reached level 2 849 | -10/Materials | Upgraded with Propulsion slot (x1) 849 | -10/Materials | Upgraded with Utility slot (x1) 1030 | -10/Materials | Identified exit to Materials 1312 | -10/Materials | Reached level 3 1452 | -10/Materials | Reached level 4 1465 | -10/Materials | Upgraded with Propulsion slot (x1) 1498 | -10/Materials | Entered Mines 1499 | -10/Mines | Assembled infested the area 1499 | -10/Mines | Discovered exit to Materials (range 10) 1520 | -10/Mines | Upgraded with Utility slot (x1) 1535 | -10/Mines | Discovered exit to Materials (range 8) 1538 | -10/Mines | Destroyed 13 combat bots 1568 | -10/Mines | Deemed a non-threat by the Exiles lab entrance 1569 | -10/Mines | Discovered new exit (range 5) 1570 | -10/Mines | Identified exit to Exiles 1603 | -10/Mines | Found a hidden stash of uninstalled traps 1614 | -10/Mines | Reached level 5 1631 | -10/Mines | Joined a pair of Derelicts in attacking an 0b10 outpost 1642 | -10/Mines | Upgraded with Utility slot (x1) 1661 | -10/Mines | Learned location of Storage (-9) 1709 | -10/Mines | Received a Rocket Launcher from a helpful Derelict 1808 | -10/Mines | Build established: Scavenger-Scout 1813 | -10/Mines | Entered Exiles 1819 | -10/Exiles | Discovered new exit (range 15) 1823 | -10/Exiles | Identified exit to Mines 1831 | -10/Exiles | Met 8R-AWN 1839 | -10/Exiles | Met EX-HEX 1854 | -10/Exiles | Met EX-BIN 1883 | -10/Exiles | Met EX-DEC 1885 | -10/Exiles | Learned location of Zion (-7) 1934 | -10/Exiles | Visited The Gauntlet 1987 | -10/Exiles | Discovered exit to Mines (range 14) 2040 | -10/Exiles | Aligned with FarCom system 2040 | -10/Exiles | Given EX-Vault access code 2048 | -10/Exiles | Opened EX-Vault 2051 | -10/Exiles | Found Prototype Processor 2051 | -10/Exiles | Identified Modified TNC 2054 | -10/Exiles | Found Prototype Device 2055 | -10/Exiles | Identified Trap Reconfigurator 2061 | -10/Exiles | Found Prototype Slashing Weapon 2062 | -10/Exiles | Identified Longsword +1 2070 | -10/Exiles | Warned to stay clear of 0b10 Research branches 2199 | -10/Exiles | Attacked by the Exiles 2209 | -10/Exiles | Core integrity fell below 50% 2226 | -10/Exiles | Core integrity fell below 20% 2267 | -10/Exiles | Destroyed 8R-AWN 2274 | -10/Exiles | Found 8R-AWN's Boregun 2307 | -10/Exiles | Found 8R-AWN's Boregun 2565 | -10/Exiles | Build established: Hacker-Mutant 2582 | -10/Exiles | Destroyed by DAS Turret with DAS Cannon Last Messages --------------- HV Slug penetrates BIN's Workstation. HV Slug penetrates Wall. HV Slug penetrates DEC's Workstation. HV Slug penetrates Wall. DEC's Workstation disabled. HV Slug penetrates DEC's Workstation. HV Slug penetrates Wall. HV Slug penetrates EX-Generator. Wall collapses. HV Slug penetrates EX-Generator. HV Slug penetrates DEC's Workstation. HV Slug penetrates EX-Generator. HV Slug penetrates DEC's Workstation. HV Slug penetrates Wall. HV Slug penetrates EX-Generator. HV Slug penetrates DEC's Workstation. HV Slug penetrates Wall. HV Slug penetrates EX-Generator. EX-Generator explodes. HV Slug penetrates Wall. Map ----- +----------------------------------------------------+ | ??????????????### " " #### #?#"""""""###?# | | ??###????????#?## " " #### ###"""""""##?## | | #??????#??????#?## " " ?### ###"" """"##?## | | ###????????#????# " "# ##" """"##?## | | "#?????##?#????## """"####" """" | | "##?????????#??## ####" """""""" | | "#??????????????###### #####" """"" | | ""#???????#?#################" """"" | | ""#???????#??# """######?##" " | | ""#????#?????#"" """#?##?##### "" | | #??????????#?#"" ###?###### | | ##??#??????###"" #?########" X" | | ####?#???????#"" "####?#####" | | "#?#??#???##?# ""##########" "" " " " | | ###???###??##"" ""##########" #########"" | | ##????#???### ###########"" #?####### """"" | | ######???### ##########"" #######?# | | """#####X# #"###""""""" #########?# ## | | """""" " "" ############## | | "" """ " #####""""" " | | # " " " """ " | | ### "" " | | ??### " | | #?#?## | | ??#??## % | | ?#??####" @ % | | #??#?###""" """""" | | ?#?##?##" ######""" | | ????#?#"" ""####??#####""" | | #?#??##""" """########?####""" | | ??#??#""" """##########?###"""" | | ?????#""" ""###?##########"" | | ?#####"" ##############"""" | | #????#""" ## ####""" | | ??#??#"" """" | | ###??##"" | | ??????#"""" | | ???#??## " | | ???????#" " "" """ | | ?#????##"""" ""## ##""" " " ""#" | | ???#???#"" ""#### ######""" """##"" | | ??#?####" """"###?# ##?#?###""""##### | | #??????#""" """##?## ##??#?##########? | | ???????## ""###?#! " ????###????#?# | | ?????#??#"" """####?#" !###?????##?##? | | ?#???#?###""" ###?###" "#???????###### | | ???#???#?##"""" ##?????#!!""!"##?#???#??#??# | | ????????#?### ###?###########???#???#?###? | | ????##???##?##### ###??###?#?#?##?#????##?#???? | | ??####??###???#?## ##????###?#???##???????????#? | +----------------------------------------------------+ Best States ------------- Heat Dissipation 25 Energy Generation 19 Energy Capacity 310 Matter Stores 350 Matter Capacity 350 Sight Range 18 Robot Scan Range 14 Terrain Scan Range 16 Terrain Scan Density 110 Armor Coverage 150 Evasion (%) 63 Launcher Accuracy 20 Offensive Hacking 15 Defensive Hacking 10 Item Schematics ----------------- None Robot Schematics ------------------ None Fabricated ------------ Nothing Alien Tech Used ----------------- None Achievements -------------- None Challenges ------------ None RPGLIKE | -11 -10 -10 -10 --------- Run | Jun Mat Min Exi Levels Raised 4 | . 3 1 . XP Earned 9315 | 3000 4570 1502 243 XP Spent 8955 | 1300 5050 2500 105 Upgrades 20 | 4 11 2 3 Propulsion Slot 2 | . 2 . . Utility Slot 4 | 1 1 2 . Core Integrity 3 | . . . 3 Matter Storage 1 | . 1 . . Mass Support 1 | . 1 . . Inventory Capacity 3 | 2 1 . . Terrain Scan Density 1 | 1 . . . Hack Attack % 3 | . 3 . . Hack Defense % 2 | . 2 . . Protomatter Created 233 | . 193 21 19 Integrity Restored 292 | . 235 . 57 Core 249 | . 192 . 57 Parts 43 | . 43 . . Protomatter Decayed 117 | . 117 . . Game ------ Seed LaserTachyonMeganuke Manual? 0 Play Time 01:14:43 Cumulative 80.2 hours Start 2023.07.09 @ 16:58:27 End 2023.07.09 @ 18:16:58 Sessions 1 Manual Loads 0 Difficulty Rogue Special Mode Winter2019/RPGLIKE Game No. 19 Rogue 13 Adventurer 5 Explorer 1 Win Type - Total 3 Types 3/0/0/0/0/0/0/0/0 Lore% 35 Gallery% 56 Achievement% 46 Wizard Run 0 Options --------- ASCII 0 Keyboard 0 Movement Mouse Keybinds 0 Fullscreen 1 Font 18/SmallcapsGlow Map View 76x50 Tactical HUD 0 Map Filters NONE Filters NONE Steam 1 RUN: 7ca47ebc-1cec-420c-b37d-b6190ec5a877